fUSD/lending_fUSD_20241223
["ID","MTS","AMOUNT","RATE_DAILY","PERIOD"]
[346426148,1734957031904,-117.68944881,0.0001578,2]
[346426149,1734957031914,-442.55,0.00015965,2]
[346426150,1734957031924,-500.0,0.00016876,2]
[346426151,1734957031933,-550.0,0.00017,2]
[346426152,1734957031942,-305.26105026,0.0001715,2]
[346426153,1734957031954,-2294.73894974,0.0001715,2]
[346426154,1734957031964,-17.86749335,0.0001715,2]
[346426155,1734957031976,-1082.13250665,0.0001715,2]
[346426156,1734957031986,-1975.24,0.00017721,2]
[346426157,1734957031995,-250.0,0.00017749,2]
[346426158,1734957032005,-1001.04,0.00017864,2]
[346426159,1734957032014,-1000.0,0.00017926,2]
[346426160,1734957032024,-1031.21,0.00018036,2]
[346426161,1734957032033,-3453.54987335,0.00018114,2]
[346426162,1734957032053,-878.51957771,0.00018114,2]
[346426163,1734957032065,-912.51784297,0.00018114,2]
[346426164,1734957032088,-4518.70270597,0.00018114,2]
[346426165,1734957032097,-250.0,0.00018173,2]
[346426166,1734957032106,-150.0,0.00018176,2]
[346426167,1734957032116,-273.24,0.00018211,2]
[346426168,1734957032125,-442.55,0.00018229,2]
[346426169,1734957032820,-2600.0,0.00018246,2]
[346426170,1734957032830,-1100.0,0.00018246,2]
[346426171,1734957032840,-318.0,0.00018422,2]
[346426172,1734957032850,-500.0,0.00018658,2]
[346426173,1734957032859,-202.05,0.000189,2]
[346426174,1734957032870,-497.031,0.00019,2]
[346426175,1734957032881,-2000.0,0.00019,2]
[346426176,1734957032890,-3304.18861013,0.00019,2]
[346426177,1734957033054,-424.95176376,0.00019,2]
[346426178,1734957033067,-270.85962611,0.00019,2]
[346426179,1734957033077,-600.0,0.00019,2]
[346426180,1734957033087,-80.80037389,0.00019,2]
[346426181,1734957033099,-349.33627045,0.00019,2]
[346426182,1734957033112,-558.64076234,0.00019,2]
[346426183,1734957033124,-285.0,0.00019,2]
[346426184,1734957033136,-405.45521288,0.00019,2]
[346426185,1734957033149,-8320.76738044,0.00019,2]
[346426186,1734957033159,-300.0,0.00019014,2]
[346426187,1734957033170,-770.7,0.00019041,2]
[346426188,1734957033180,-941.38,0.00019041,2]
[346426189,1734957033190,-770.7,0.00019041,2]
[346426190,1734957033201,-870.33,0.00019041,2]
[346426191,1734957033210,-770.7,0.00019041,2]
[346426192,1734957033220,-770.7,0.00019041,2]
[346426193,1734957033230,-339.67,0.00019041,2]
[346426194,1734957033240,-500.0,0.00019068,2]
[346426195,1734957033250,-4338.935,0.00019078,2]
[346426196,1734957033260,-218.02,0.00019078,2]
[346426197,1734957033270,-406.68317718,0.00019078,2]
[346426198,1734957033281,-165.01168063,0.00019078,2]
[346426199,1734957033291,-715.5707,0.00019078,2]
[346426200,1734957033302,-2974.9973,0.00019078,2]
[346426201,1734957033312,-2579.1322,0.00019078,2]
[346426202,1734957033322,-5000.0,0.00019078,2]
[346426203,1734957033331,-4120.099022,0.00019168,2]
[346426204,1734957033341,-406.68317718,0.00019169,2]
[346426205,1734957033351,-458.03794383,0.00019178,2]
[346426206,1734957033361,-619.88963541,0.00019178,2]
[346426207,1734957033371,-502.69799101,0.00019178,2]
[346426208,1734957033380,-500.83313769,0.00019178,2]
[346426209,1734957033389,-502.00475857,0.00019178,2]
[346426210,1734957033399,-317.30124691,0.00019178,2]
[346426211,1734957033409,-506.04350671,0.00019178,2]
[346426212,1734957033418,-513.74326195,0.00019178,2]
[346426213,1734957033429,-623.87,0.00019178,2]
[346426214,1734957033440,-507.94696116,0.00019178,2]
[346426215,1734957033530,-500.0,0.00019178,2]
[346426216,1734957033540,-193.25344129,0.00019178,2]
[346426217,1734957033550,-506.82,0.00019178,2]
[346426218,1734957033560,-769.58,0.00019178,2]
[346426219,1734957033570,-1011.83,0.00019178,2]
[346426220,1734957033580,-500.0,0.00019178,2]
[346426221,1734957033589,-500.0,0.00019178,2]
[346426222,1734957033599,-843.84,0.00019178,2]
[346426223,1734957033610,-500.0,0.00019178,2]
[346426224,1734957033619,-952.53,0.00019178,2]
[346426225,1734957033629,-500.0,0.00019178,2]
[346426226,1734957033639,-665.23,0.00019178,2]
[346426227,1734957033648,-500.0,0.00019178,2]
[346426228,1734957033659,-500.0,0.00019178,2]
[346426229,1734957033668,-500.0,0.00019178,2]
[346426230,1734957033678,-500.0,0.00019178,2]
[346426231,1734957033688,-500.0,0.00019178,2]
[346426232,1734957033698,-900.61,0.00019178,2]
[346426233,1734957033707,-505.57020839,0.00019178,2]
[346426234,1734957033721,-500.0,0.00019178,2]
[346426235,1734957033731,-500.0,0.00019178,2]
[346426236,1734957033741,-500.0,0.00019178,2]
[346426237,1734957033750,-500.0,0.00019178,2]
[346426238,1734957033760,-218.86568722,0.00019178,2]
[346426239,1734957033775,-535.12431278,0.00019178,2]
[346426240,1734957033785,-500.0,0.00019178,2]
[346426241,1734957033795,-500.0,0.00019178,2]
[346426242,1734957033806,-500.0,0.00019178,2]
[346426243,1734957033816,-500.0,0.00019178,2]
[346426244,1734957033826,-484.94626703,0.00019178,2]
[346426245,1734957033839,-15.05373297,0.00019178,2]
[346426246,1734957033848,-624.4938911,0.00019178,2]
[346426247,1734957033858,-60.45087608,0.00019178,2]
[346426248,1734957037691,-341.24596483,0.00019178,2]
[346426249,1734957037703,-98.30315909,0.00019178,2]
[346426250,1734957037713,-500.0,0.00019178,2]
[346426251,1734957037722,-500.0,0.00019178,2]
[346426252,1734957037731,-500.0,0.00019178,2]
[346426253,1734957037741,-500.0,0.00019178,2]
[346426254,1734957037750,-473.82079357,0.00019178,2]
[346426255,1734957037759,-931.75,0.00019178,2]
[346426256,1734957037769,-500.0,0.00019178,2]
[346426257,1734957037778,-500.0,0.00019178,2]
[346426258,1734957037787,-574.75,0.00019178,2]
[346426259,1734957037795,-500.0,0.00019178,2]
[346426260,1734957037805,-500.0,0.00019178,2]
[346426261,1734957037814,-500.0,0.00019178,2]
[346426262,1734957037823,-500.0,0.00019178,2]
[346426263,1734957037832,-1226.54,0.00019178,2]
[346426264,1734957037841,-500.0,0.00019178,2]
[346426265,1734957037850,-500.0,0.00019178,2]
[346426266,1734957037859,-43.54302933,0.00019178,2]
[346426267,1734957037885,-456.45697067,0.00019178,2]
[346426268,1734957037894,-1050.85,0.00019178,2]
[346426269,1734957037903,-153.16498695,0.00019178,2]
[346426270,1734957037914,-346.83501305,0.00019178,2]
[346426271,1734957037923,-131.48458613,0.00019178,2]
[346426272,1734957037934,-368.51541387,0.00019178,2]
[346426273,1734957037943,-500.0,0.00019178,2]
[346426274,1734957037952,-500.0,0.00019178,2]
[346426275,1734957037962,-500.0,0.00019178,2]
[346426276,1734957037971,-798.14,0.00019178,2]
[346426277,1734957037981,-500.0,0.00019178,2]
[346426278,1734957037990,-517.18420998,0.00019178,2]
[346426279,1734957037999,-500.0,0.00019178,2]
[346426280,1734957038009,-503.69222423,0.00019178,2]
[346426281,1734957038019,-152.04288296,0.00019178,2]
[346426282,1734957038031,-857.76711704,0.00019178,2]
[346426283,1734957038039,-507.66,0.00019178,2]
[346426284,1734957038048,-500.0,0.00019178,2]
[346426285,1734957038058,-500.0,0.00019178,2]
[346426286,1734957038066,-500.0,0.00019178,2]
[346426287,1734957038075,-294.09113219,0.00019178,2]
[346426288,1734957038087,-205.90886781,0.00019178,2]
[346426290,1734957038096,-414.23112469,0.00019178,2]
[346426293,1734957038119,-85.76887531,0.00019178,2]
[346426294,1734957038128,-621.95,0.00019178,2]
[346426295,1734957038138,-991.96,0.00019178,2]
[346426296,1734957038147,-764.62,0.00019178,2]
[346426298,1734957038156,-500.0,0.00019178,2]
[346426300,1734957038165,-500.0,0.00019178,2]
[346426302,1734957038174,-526.79835638,0.00019178,2]
[346426305,1734957038183,-667.21,0.00019178,2]
[346426308,1734957038192,-584.93933268,0.00019178,2]
[346426311,1734957038201,-500.0,0.00019178,2]
[346426315,1734957038210,-500.0,0.00019178,2]
[346426319,1734957038220,-500.0,0.00019178,2]
[346426322,1734957038229,-500.0,0.00019178,2]
[346426326,1734957038239,-1016.21,0.00019178,2]
[346426329,1734957038248,-130.96172502,0.00019178,2]
[346426381,1734957039719,-369.03827498,0.00019178,2]
[346426382,1734957039729,-82.31540383,0.00019178,2]
[346426385,1734957040710,-345.81776525,0.00019178,2]
[346426386,1734957040722,-633.88683092,0.00019178,2]
[346426387,1734957040732,-235.66916835,0.00019178,2]
[346426388,1734957040751,-264.33083165,0.00019178,2]
[346426389,1734957040760,-500.0,0.00019178,2]
[346426390,1734957040769,-500.0,0.00019178,2]
[346426391,1734957040778,-500.0,0.00019178,2]
[346426392,1734957040787,-500.0,0.00019178,2]
[346426393,1734957040796,-534.99,0.00019178,2]
[346426394,1734957040806,-353.37760181,0.00019178,2]
[346426403,1734957042786,-146.62239819,0.00019178,2]
[346426404,1734957042796,-500.0,0.00019178,2]
[346426405,1734957042806,-629.58,0.00019178,2]
[346426406,1734957042816,-500.0,0.00019178,2]
[346426407,1734957042825,-537.01,0.00019178,2]
[346426408,1734957042835,-500.0,0.00019178,2]
[346426409,1734957042844,-500.0,0.00019178,2]
[346426410,1734957042853,-346.48879547,0.00019178,2]
[346426411,1734957042862,-500.0,0.00019178,2]
[346426412,1734957042871,-500.0,0.00019178,2]
[346426413,1734957042881,-500.0,0.00019178,2]
[346426414,1734957042890,-500.0,0.00019178,2]
[346426415,1734957042900,-500.0,0.00019178,2]
[346426416,1734957042909,-500.0,0.00019178,2]
[346426417,1734957042919,-500.0,0.00019178,2]
[346426418,1734957042928,-500.0,0.00019178,2]
[346426419,1734957042938,-500.0,0.00019178,2]
[346426420,1734957042948,-500.0,0.00019178,2]
[346426421,1734957042958,-500.0,0.00019178,2]
[346426422,1734957042968,-500.0,0.00019178,2]
[346426423,1734957042977,-512.82,0.00019178,2]
[346426424,1734957042987,-696.1,0.00019178,2]
[346426425,1734957042997,-717.456338,0.00019178,2]
[346426426,1734957043014,-39.923662,0.00019178,2]
[346426427,1734957043023,-256.04555304,0.00019178,2]
[346426428,1734957043046,-243.95444696,0.00019178,2]
[346426429,1734957043055,-6.83091873,0.00019178,2]
[346426430,1734957043067,-493.16908127,0.00019178,2]
[346426431,1734957043076,-424.9981687,0.00019178,2]
[346426444,1734957045831,-170.6318313,0.00019178,2]
[346426445,1734957045841,-567.56,0.00019178,2]
[346426446,1734957045851,-500.0,0.00019178,2]
[346426447,1734957045861,-503.33114913,0.00019178,2]
[346426448,1734957045871,-500.0,0.00019178,2]
[346426449,1734957045880,-500.0,0.00019178,2]
[346426450,1734957045890,-500.0,0.00019178,2]
[346426451,1734957045900,-500.0,0.00019178,2]
[346426452,1734957045909,-500.0,0.00019178,2]
[346426453,1734957045918,-500.0,0.00019178,2]
[346426454,1734957045928,-500.0,0.00019178,2]
[346426455,1734957045938,-1265.44,0.00019178,2]
[346426456,1734957045947,-635.29,0.00019178,2]
[346426457,1734957045956,-500.0,0.00019178,2]
[346426458,1734957045966,-500.0,0.00019178,2]
[346426459,1734957045976,-155.988333,0.00019178,2]
[346426460,1734957045985,-153.753902,0.00019178,2]
[346426461,1734957045995,-3377.401771,0.00019178,2]
[346426462,1734957046004,-500.0,0.00019178,2]
[346426463,1734957046014,-61.39912322,0.00019178,2]
[346426464,1734957046035,-266.83853383,0.00019178,2]
[346426465,1734957046050,-171.76234295,0.00019178,2]
[346426466,1734957046064,-260.12265705,0.00019178,2]
[346426467,1734957046076,-611.64734295,0.00019178,2]
[346426468,1734957046085,-751.94,0.00019178,2]
[346426469,1734957046095,-510.48235705,0.00019178,2]
[346426470,1734957046107,-95.78764295,0.00019178,2]
[346426471,1734957046117,-500.0,0.00019178,2]
[346426472,1734957046127,-230.23652413,0.00019178,2]
[346426473,1734957046138,-3461.63615587,0.00019178,2]
[346426474,1734957046148,-439.12160596,0.00019178,2]
[346426475,1734957046160,-60.87839404,0.00019178,2]
[346426476,1734957046170,-500.0,0.00019178,2]
[346426477,1734957046180,-657.75,0.00019178,2]
[346426478,1734957046189,-500.0,0.00019178,2]
[346426479,1734957046199,-500.0,0.00019178,2]
[346426480,1734957046209,-500.0,0.00019178,2]
[346426481,1734957046219,-178.76373885,0.00019178,2]
[346426482,1734957046231,-524.45281876,0.00019178,2]
[346426483,1734957046241,-996.71,0.00019178,2]
[346426484,1734957046252,-500.0,0.00019178,2]
[346426485,1734957046263,-278.2390894,0.00019178,2]
[346426486,1734957046272,-500.0,0.00019178,2]
[346426487,1734957046282,-500.0,0.00019178,2]
[346426488,1734957046292,-511.46,0.00019178,2]
[346426489,1734957046302,-500.0,0.00019178,2]
[346426490,1734957046312,-521.9840349,0.00019178,2]
[346426491,1734957046322,-734.62,0.00019178,2]
[346426492,1734957046332,-500.0,0.00019178,2]
[346426493,1734957046341,-344.24670028,0.00019178,2]
[346426495,1734957046370,-155.75329972,0.00019178,2]
[346426496,1734957046379,-356.19670028,0.00019178,2]
[346426497,1734957046391,-143.80329972,0.00019178,2]
[346426498,1734957046401,-500.0,0.00019178,2]
[346426499,1734957046411,-313.71670028,0.00019178,2]
[346426501,1734957046423,-186.28329972,0.00019178,2]
[346426502,1734957046432,-500.0,0.00019178,2]
[346426503,1734957046442,-543.74,0.00019178,2]
[346426504,1734957046451,-500.0,0.00019178,2]
[346426505,1734957046464,-500.0,0.00019178,2]
[346426506,1734957046474,-424.16141716,0.00019178,2]
[346426507,1734957046484,-500.0,0.00019178,2]
[346426508,1734957046494,-500.0,0.00019178,2]
[346426509,1734957046503,-500.0,0.00019178,2]
[346426510,1734957046513,-500.0,0.00019178,2]
[346426511,1734957046523,-649.61,0.00019178,2]
[346426512,1734957046532,-500.0,0.00019178,2]
[346426513,1734957046542,-500.0,0.00019178,2]
[346426514,1734957046552,-500.0,0.00019178,2]
[346426515,1734957046562,-500.0,0.00019178,2]
[346426516,1734957046571,-500.0,0.00019178,2]
[346426517,1734957046581,-500.0,0.00019178,2]
[346426518,1734957046590,-1832.9,0.00019178,2]
[346426519,1734957046603,-1319.03,0.00019178,2]
[346426520,1734957046613,-500.06,0.00019178,2]
[346426521,1734957046623,-500.0,0.00019178,2]
[346426522,1734957046633,-500.0,0.00019178,2]
[346426523,1734957046644,-82.71528312,0.00019178,2]
[346426524,1734957046686,-417.28471688,0.00019178,2]
[346426525,1734957046695,-540.6,0.00019178,2]
[346426526,1734957046705,-500.0,0.00019178,2]
[346426527,1734957046715,-500.0,0.00019178,2]
[346426528,1734957046725,-34.94076034,0.00019178,2]
[346426529,1734957046737,-1278.95923966,0.00019178,2]
[346426530,1734957046750,-500.0,0.00019178,2]
[346426531,1734957046760,-500.0,0.00019178,2]
[346426532,1734957046769,-500.0,0.00019178,2]
[346426533,1734957046779,-200.0,0.00019178,2]
[346426534,1734957046788,-500.0,0.00019178,2]
[346426535,1734957046798,-500.0,0.00019178,2]
[346426536,1734957046808,-500.0,0.00019178,2]
[346426537,1734957046818,-500.0,0.00019178,2]
[346426538,1734957046831,-500.0,0.00019178,2]
[346426539,1734957046844,-500.0,0.00019178,2]
[346426540,1734957046854,-1106.25,0.00019178,2]
[346426541,1734957046863,-500.0,0.00019178,2]
[346426542,1734957046873,-749.53,0.00019178,2]
[346426543,1734957046882,-500.0,0.00019178,2]
[346426544,1734957046892,-718.12,0.00019178,2]
[346426545,1734957046902,-2494.98,0.00019178,2]
[346426546,1734957046911,-503.19994307,0.00019178,2]
[346426547,1734957046921,-500.0,0.00019178,2]
[346426548,1734957046931,-500.0,0.00019178,2]
[346426549,1734957046941,-500.0,0.00019178,2]
[346426550,1734957046950,-500.0,0.00019178,2]
[346426551,1734957046960,-500.0,0.00019178,2]
[346426552,1734957046971,-506.38846769,0.00019178,2]
[346426553,1734957046980,-500.0,0.00019178,2]
[346426554,1734957046990,-40.63057145,0.00019178,2]
[346426555,1734957047008,-459.36942855,0.00019178,2]
[346426556,1734957047017,-36.93272345,0.00019178,2]
[346426557,1734957047029,-302.0,0.00019178,2]
[346426558,1734957047049,-161.06727655,0.00019178,2]
[346426559,1734957047059,-1236.35,0.00019178,2]
[346426560,1734957047069,-202.58272345,0.00019178,2]
[346426561,1734957694498,-900.0,0.00012876,2]
[346426562,1734957694521,-2000.0,0.00012876,2]
[346426563,1734957694544,-500.0,0.00013972,2]
[346426564,1734957694568,-900.0,0.00014246,2]
[346426565,1734957694592,-2000.0,0.00014246,2]
[346426566,1734957694615,-84.0,0.00015616,2]
[346426567,1734957752262,-1700.0,0.00013972,2]
[346426568,1734957752284,-700.0,0.00013972,2]
[346426569,1734957752306,-500.0,0.00015068,2]
[346426570,1734957752328,-1700.0,0.00015342,2]
[346426571,1734957752350,-400.0,0.00015342,2]
[346426577,1734957960679,200.55,0.00010137,2]
[346426597,1734958232173,-450.0,0.00013,2]
[346426598,1734958232183,-500.0,0.00015,2]
[346426599,1734958232193,-300.0,0.00015342,2]
[346426600,1734958232203,-426.72,0.00015692,2]
[346426601,1734958232212,-210.0,0.000163,2]
[346426602,1734958232222,-210.0,0.0001655,2]
[346426603,1734958232231,-1700.0,0.00016712,2]
[346426604,1734958232241,-700.0,0.00016712,2]
[346426605,1734958232251,-210.0,0.0001679,2]
[346426606,1734958232261,-200.55,0.00016813,2]
[346426607,1734958232270,-210.0,0.0001704,2]
[346426608,1734958232279,-210.0,0.0001704,2]
[346426609,1734958232289,-210.0,0.0001729,2]
[346426610,1734958232299,-210.0,0.0001729,2]
[346426611,1734958232309,-194.6321,0.0001729,2]
[346426612,1734958232319,-250.0,0.00017329,2]
[346426613,1734958232329,-250.0,0.00017348,2]
[346426614,1734958232339,-210.0,0.0001753,2]
[346426615,1734958232348,-210.0,0.0001753,2]
[346426616,1734958232357,-18785.589294,0.00017574,2]
[346426617,1734958232374,-1525.15327041,0.00017574,2]
[346426618,1734958232405,-316.76743559,0.00017574,2]
[346426619,1734958232415,-922.64,0.00017576,2]
[346426620,1734958232426,-1000.0,0.00017599,2]
[346426621,1734958232435,-250.0,0.00017636,2]
[346426622,1734958232446,-163.66,0.0001769,2]
[346426623,1734958232455,-273.24,0.00017715,2]
[346426624,1734958232465,-210.0,0.0001778,2]
[346426625,1734958232474,-210.0,0.0001778,2]
[346426626,1734958232484,-500.0,0.00017808,2]
[346426627,1734958232494,-1700.0,0.00017808,2]
[346426628,1734958232503,-700.0,0.00017808,2]
[346426629,1734958232513,-426.72,0.00017956,2]
[346426630,1734958232523,-150.0,0.00018,2]
[346426632,1734958232534,-204.0,0.0001803,2]
[346426634,1734958232543,-210.0,0.0001803,2]
[346426635,1734958232553,-210.0,0.0001803,2]
[346426636,1734958232562,-204.0,0.0001827,2]
[346426637,1734958232572,-210.0,0.0001827,2]
[346426638,1734958232582,-210.0,0.0001827,2]
[346426639,1734958232591,-436.35,0.00018356,2]
[346426640,1734958232601,-150.0,0.00018356,2]
[346426641,1734958232612,-365.19,0.00018356,2]
[346426642,1734958232622,-300.0,0.00018356,2]
[346426643,1734958232632,-977.37,0.00018356,2]
[346426644,1734958232642,-150.0,0.00018356,2]
[346426645,1734958232652,-150.0,0.00018356,2]
[346426646,1734958232661,-150.0,0.00018356,2]
[346426647,1734958232671,-303.15,0.00018356,2]
[346426649,1734958232682,-204.0,0.0001852,2]
[346426651,1734958232692,-210.0,0.0001852,2]
[346426653,1734958232702,-210.0,0.0001852,2]
[346426655,1734958232712,-209.0,0.0001852,2]
[346426657,1734958232721,-204.0,0.0001877,2]
[346426659,1734958232731,-210.0,0.0001877,2]
[346426661,1734958232741,-210.0,0.0001877,2]
[346426663,1734958232751,-209.0,0.0001877,2]
[346426665,1734958232760,-151.0,0.00018829,2]
[346426667,1734958232769,-437.09,0.00018911,2]
[346426669,1734958232779,-770.7,0.00018911,2]
[346426671,1734958232788,-6594.4927,0.00018978,2]
[346426673,1734958232798,-4295.5834,0.00018978,2]
[346426675,1734958232808,-625.190359,0.00018978,2]
[346426677,1734958232818,-3000.0,0.0001899,2]
[346426679,1734958232828,-2890.39425032,0.0001899,2]
[346426681,1734958232838,-504.78,0.00019,2]
[346426683,1734958232847,-204.0,0.0001901,2]
[346426685,1734958232857,-210.0,0.0001901,2]
[346426687,1734958232867,-210.0,0.0001901,2]
[346426689,1734958232876,-209.0,0.0001901,2]
[346426691,1734958232886,-300.0,0.00019014,2]
[346426693,1734958232896,-770.39,0.00019041,2]
[346426695,1734958232905,-625.19035891,0.0001905,2]
[346426697,1734958232914,-82804.1682,0.00019077,2]
[346426698,1734958232924,-2601.6078,0.00019078,2]
[346426700,1734958232934,-32620.8848,0.00019078,2]
[346426702,1734958232944,-5000.0,0.00019078,2]
[346426704,1734958232953,-422.9386,0.00019078,2]
[346426706,1734958232963,-183.98828503,0.00019078,2]
[346426708,1734958232972,-202.91,0.00019078,2]
[346426710,1734958232982,-200.74,0.00019078,2]
[346426711,1734958232992,-2689.0141,0.00019078,2]
[346426712,1734958233002,-100000.0,0.000191,2]
[346426713,1734958233012,-346.0,0.000191,2]
[346426714,1734958233022,-625.19035891,0.00019122,2]
[346426715,1734958233032,-183.98828498,0.00019162,2]
[346426716,1734958233042,-155.1,0.00019168,2]
[346426717,1734958233053,-155.1,0.00019168,2]
[346426718,1734958233067,-155.1,0.00019168,2]
[346426719,1734958233078,-168.30962771,0.00019168,2]
[346426720,1734958233088,-711.43,0.00019177,2]
[346426721,1734958233098,-20796.17900209,0.00019178,3]
[346426722,1734958233123,-4738.0690904,0.00019178,3]
[346426723,1734958233140,-1443.917475,0.00019178,3]
[346426724,1734958233171,-6545.82424386,0.00019178,3]
[346426729,1734958237951,-540.65357155,0.00019178,3]
[346426744,1734958239984,-1710.43004131,0.00019178,3]
[346426745,1734958239996,-351.86149991,0.00019178,3]
[346426751,1734958243313,-2481.02023024,0.00019178,3]
[346426752,1734958243333,-3097.81992682,0.00019178,3]
[346426762,1734958245974,-287.70113274,0.00019178,3]
[346426763,1734958246245,-12233.50625874,0.00019178,3]
[346426767,1734958425376,77000.0,0.00019,60]
[346426768,1734958450767,688.9,0.00019,60]
[346426777,1734958553187,-500.0,0.00013972,2]
[346426778,1734958643921,-1100.0,0.00015068,2]
[346426779,1734958643942,-500.0,0.00015068,2]
[346426780,1734958849846,155.59,0.00010137,2]
[346426794,1734959194142,-175.0,0.000139,5]
[346426795,1734959194163,-0.42295132,0.00015068,2]
[346426804,1734959432251,-1681.57704868,0.00015068,2]
[346426805,1734959432261,-1000.0,0.00015068,2]
[346426806,1734959432271,-500.0,0.00015068,2]
[346426807,1734959432281,-412.04,0.00015622,2]
[346426808,1734959432290,-261.10162416,0.00016164,2]
[346426809,1734959432300,-1000.0,0.00016438,2]
[346426810,1734959432310,-500.0,0.00016438,2]
[346426811,1734959432324,-1500.0,0.00016827,2]
[346426812,1734959432333,-300.0,0.00016898,2]
[346426813,1734959432343,-2840.5974,0.000169,2]
[346426814,1734959432353,-250.0,0.00016919,2]
[346426815,1734959432362,-50000.0,0.00017,2]
[346426816,1734959432372,-500.0,0.0001701,2]
[346426817,1734959432383,-20953.48,0.00017032,2]
[346426818,1734959432394,-273.24,0.00017039,2]
[346426819,1734959432403,-2751.0,0.00017161,2]
[346426820,1734959432414,-1000.0,0.0001745,2]
[346426821,1734959432424,-50000.0,0.000175,2]
[346426822,1734959432433,-6027.95365708,0.00017799,2]
[346426823,1734959432443,-8264.37615102,0.00017799,2]
[346426824,1734959432452,-165.01168062,0.00017799,2]
[346426825,1734959432462,-175.83007296,0.000178,2]
[346426826,1734959432472,-1000.0,0.00017808,2]
[346426827,1734959432481,-500.0,0.00017873,2]
[346426828,1734959432491,-412.04,0.00017886,2]
[346426829,1734959432501,-21422.11390765,0.00017899,3]
[346426865,1734959433191,-936158.85403443,0.00017899,3]
[346426866,1734959433341,-982.43337259,0.00017899,3]
[346426867,1734959433387,-19268.00283667,0.00017899,3]
[346426889,1734959440216,-500.0,0.00017873,2]
[346426890,1734959440420,-9033.14475835,0.00017899,3]
[346426896,1734959443834,-981.79,0.00017899,3]
[346426897,1734959443863,-1243.55491764,0.00017899,3]
[346426898,1734959443930,-22063.0,0.00017899,3]
[346426899,1734959444051,-284.57482882,0.00017899,3]
[346426900,1734959444062,-274.53936668,0.00017899,3]
[346426933,1734960632330,-450.0,0.00013,2]
[346426936,1734960632341,-398.61,0.00014973,2]
[346426939,1734960632350,-500.0,0.00015068,2]
[346426941,1734960632360,-800.0,0.00015068,2]
[346426942,1734960632370,-281.49,0.00016321,2]
[346426943,1734960632379,-800.0,0.00016438,2]
[346426944,1734960632388,-162.67,0.00016651,2]
[346426945,1734960632397,-250.0,0.00016725,2]
[346426946,1734960632406,-250.0,0.00016783,2]
[346426947,1734960632416,-300.0,0.00016909,2]
[346426948,1734960632425,-5425.15829139,0.0001691,2]
[346426949,1734960632434,-23900.0,0.0001693,2]
[346426950,1734960632443,-477.0,0.0001699,2]
[346426951,1734960632452,-477.0,0.0001699,2]
[346426952,1734960632462,-477.0,0.0001699,2]
[346426953,1734960632471,-7636.16048521,0.00017,2]
[346426954,1734960632483,-23146.85631431,0.00017,2]
[346426955,1734960632494,-457.32324151,0.00017,2]
[346426956,1734960632506,-480.24977,0.00017,2]
[346426957,1734960632522,-1251.82243913,0.00017,2]
[346426958,1734960632548,-15480.10139126,0.00017,2]
[346426959,1734960632560,-27276.73789405,0.00017,2]
[346426960,1734960632695,-47892.86121367,0.00017,2]
[346426961,1734960632750,-301.6,0.00017,2]
[346426962,1734960632762,-500.0,0.00017,2]
[346426963,1734960632773,-807.70277775,0.00017,2]
[346426964,1734960632785,-463.43924646,0.00017,2]
[346426974,1734960638300,-24512.62274066,0.00017,2]
[346426975,1734960638313,-3004.60843179,0.00017,2]